bitfinex/quotes_SOLUSD_20220128
["timestamp","ask_amount","ask_price","bid_price","bid_amount"]
[1643329551748,13.39,90.24,90.09,13.39]
[1643329551952,13.39,90.24,90.07,13.39]
[1643329552152,6.0,90.23,90.056,1.99105363]
[1643329552348,6.0,90.23,90.06,13.39]
[1643329552349,13.39,90.22,90.06,13.39]
[1643329552548,16.6509,90.2,90.06,30.0414]
[1643329552847,21.69532293,90.199,90.061,20.03214174]
[1643329553048,6.0,90.189,90.071,53.83580937]
[1643329553249,0.25,90.188,90.071,47.83580937]
[1643329553649,9.20669142,90.188,90.08,16.6482]
[1643329553851,0.1,90.243,90.09,13.39]
[1643329554152,6.0,90.239,90.09,13.39]
[1643329554351,0.25,90.238,90.091,38.79094978]
[1643329554549,0.25,90.238,90.12,16.6402]
[1643329554752,24.89304862,90.238,90.121,42.63953127]
[1643329554950,24.99304862,90.238,90.121,42.63953127]
[1643329555150,6.0,90.228,90.121,42.63953127]
[1643329555350,0.25,90.227,90.121,42.63953127]
[1643329555550,6.0,90.228,90.121,42.63953127]
[1643329555755,6.0,90.228,90.13,16.6379]
[1643329555953,48.0505,90.249,90.13,16.6379]
[1643329555954,6.0,90.239,90.14,6.0]
[1643329556155,6.0,90.239,90.131,0.25]
[1643329556554,6.0,90.23,90.131,0.25]
[1643329556756,0.25,90.229,90.121,42.38953127]
[1643329556954,6.0,90.228,90.121,42.38953127]
[1643329557358,1.02355179,90.219,90.121,42.38953127]
[1643329557655,6.0,90.209,90.121,42.38953127]
[1643329557860,0.25,90.208,90.121,42.38953127]
[1643329558056,6.25,90.208,90.121,42.38953127]
[1643329558256,9.20669142,90.208,90.05,30.0415]
[1643329558562,6.0,90.199,90.05,16.6515]
[1643329558754,13.39,90.19,90.05,16.6515]
[1643329558966,13.39,90.19,90.053,1.99105363]
[1643329559156,24.23346075,90.179,90.063,39.90026976]
[1643329559454,0.25,90.178,90.064,0.25]
[1643329559653,6.0,90.169,90.064,0.25]
[1643329559855,0.25,90.168,90.064,0.25]
[1643329560058,0.25,90.168,90.065,1.99105363]
[1643329560256,0.25,90.168,90.063,45.90026976]
[1643329560257,6.0,90.167,90.063,39.90026976]
[1643329560456,8.95669142,90.167,89.982,24.7352]
[1643329560656,8.95669142,90.167,89.95,16.8981]
[1643329560657,6.0,90.16,89.97,13.39]
[1643329560956,13.39,90.15,89.978,17.10219922]
[1643329561356,16.6623,90.13,89.99,16.6646]
[1643329561558,6.0,90.12,90.0,6.0]
[1643329561756,0.25,90.119,90.0,6.0]
[1643329561956,6.25,90.119,90.001,6.0]
[1643329562856,17.85170998,90.119,90.01,16.6597]
[1643329563056,17.85170998,90.119,90.011,42.63195698]
[1643329563457,2.95669142,90.118,90.011,42.63195698]
[1643329563858,6.0,90.108,90.011,42.63195698]
[1643329564059,6.0,90.1,90.011,42.63195698]
[1643329564263,0.25,90.099,90.011,42.63195698]
[1643329564460,6.0,90.097,90.011,42.63195698]
[1643329564762,0.25,90.096,90.012,0.25]
[1643329565364,6.0,90.09,90.012,0.25]
[1643329565761,0.25,90.089,90.012,0.25]
[1643329565962,6.0,90.082,90.012,0.25]
[1643329566362,0.25,90.081,90.011,42.63195698]
[1643329566761,0.25,90.081,90.012,0.25]
[1643329567363,6.0,90.082,90.012,0.25]
[1643329568764,0.25,90.081,90.012,0.25]
[1643329568967,72.5075,90.148,90.012,0.25]
[1643329569167,16.6623,90.13,90.012,0.25]
[1643329569384,55.5408,90.16,90.021,6.0]
[1643329569385,11.6001164,90.16,90.021,6.0]
[1643329569572,6.0,90.148,90.03,6.0]
[1643329569767,6.0,90.148,90.031,0.25]
[1643329569967,24.63846601,90.147,90.031,37.07096376]
[1643329570167,24.63846601,90.147,90.032,6.0]
[1643329570370,6.0,90.137,90.033,0.25]
[1643329570577,6.0,90.137,90.031,37.07096376]
[1643329570768,6.0,90.137,90.031,36.82096376]
[1643329571169,8.95669142,90.136,90.031,36.82096376]
[1643329571372,6.0,90.13,90.031,36.82096376]
[1643329571570,6.0,90.126,90.031,36.82096376]
[1643329571770,0.25,90.125,90.031,36.82096376]
[1643329571971,6.0,90.119,90.031,36.82096376]
[1643329572175,6.0,90.119,90.032,0.25]
[1643329572371,0.25,90.118,90.032,0.25]
[1643329573297,0.25,90.137,90.032,0.25]
[1643329573499,25.59647322,90.136,90.032,0.25]
[1643329573697,112.1,90.135,90.032,0.25]
[1643329573897,6.0,90.126,90.032,0.25]
[1643329574098,6.0,90.125,90.032,0.25]
[1643329574497,0.25,90.124,90.032,0.25]
[1643329577000,3.35818614,90.114,90.032,0.25]
[1643329577398,6.0,90.104,90.032,0.25]
[1643329577802,0.25,90.103,90.032,0.25]
[1643329578202,0.25,90.103,90.031,36.82096376]
[1643329582102,0.25,90.103,90.032,0.25]
[1643329582303,112.35,90.103,90.032,0.25]
[1643329582509,6.0,90.093,90.032,0.25]
[1643329582905,0.25,90.092,90.032,0.25]
[1643329583506,6.0,90.085,90.032,0.25]
[1643329583706,6.0,90.085,89.97,30.0566]
[1643329583908,0.25,90.084,89.97,16.6666]
[1643329584406,2.95669142,90.083,89.952,41.80193026]
[1643329584607,6.0,90.073,89.962,6.0]
[1643329584904,24.09357248,90.072,89.963,49.11037942]
[1643329585104,6.0,90.062,89.963,49.11037942]
[1643329585306,0.25,90.061,89.963,49.11037942]
[1643329585909,6.0,90.06,89.963,49.11037942]
[1643329586106,6.0,90.058,89.963,49.11037942]
[1643329586307,5.36108688,90.057,89.963,49.11037942]
[1643329586508,6.0,90.047,89.963,49.11037942]
[1643329586810,16.6816,90.03,89.913,1.47410461]
[1643329587010,6.0,90.02,89.904,5.80085523]
[1643329587210,6.0,90.02,89.9,1.47410461]
[1643329587411,6.25,90.019,89.9,1.47410461]
[1643329587811,6.25,90.019,89.901,80.82153215]
[1643329588013,0.25,90.019,89.91,55.5816]
[1643329588213,0.25,90.019,89.911,1.47410461]
[1643329588414,6.0,90.036,89.911,35.78778965]
[1643329588611,6.0,90.036,89.912,1.47410461]
[1643329588811,28.07184157,90.035,89.913,1.72410461]
[1643329589012,6.0,90.025,89.914,112.1]
[1643329589214,6.0,90.025,89.913,17.35593026]
[1643329589413,6.0,90.025,89.921,35.17310828]
[1643329589813,6.0,90.025,89.922,0.25]
[1643329590216,6.0,90.025,89.922,112.35]
[1643329590418,0.25,90.024,89.922,112.35]
[1643329591019,0.25,90.024,89.922,0.25]
[1643329592517,6.0,90.02,89.922,0.25]
[1643329592720,0.88281779,90.019,89.922,0.25]
[1643329592918,1.13281779,90.019,89.922,0.25]
[1643329593118,6.0,90.009,89.922,0.25]
[1643329593318,0.25,90.008,89.922,0.25]
[1643329594126,6.0,90.009,89.922,0.25]
[1643329594332,22.5675,90.046,89.924,112.1]
[1643329594522,1.52027651,90.074,89.934,6.0]
[1643329594720,1.52027651,90.074,89.94,13.39]
[1643329594923,1.52027651,90.08,89.94,13.39]
[1643329595220,27.93000647,90.08,89.95,6.0]
[1643329595422,27.93000647,90.08,89.962,37.94112342]
[1643329595622,27.93000647,90.08,89.972,6.0]
[1643329595922,27.93000647,90.08,89.98,13.39]
[1643329596125,27.93000647,90.08,89.981,46.28421722]
[1643329596321,6.0,90.07,89.99,6.0]
[1643329596522,6.0,90.07,89.991,6.0]
[1643329596724,0.25,90.069,89.991,6.0]
[1643329596922,0.25,90.069,89.992,0.25]
[1643329597122,0.25,90.069,89.993,6.0]
[1643329597322,0.25,90.069,89.994,0.25]
[1643329598626,0.25,90.079,89.994,0.25]
[1643329599624,6.0,90.09,89.994,0.25]
[1643329599824,0.25,90.089,90.0,6.0]
[1643329600224,26.30055154,90.089,90.001,36.21041087]
[1643329600426,32.30055154,90.089,90.001,36.21041087]
[1643329601231,32.05055154,90.089,90.001,36.21041087]
[1643329602826,0.25,90.088,90.001,36.21041087]
[1643329604029,0.25,90.088,90.011,6.0]
[1643329604427,0.25,90.088,90.012,0.25]
[1643329606036,6.0,90.089,90.012,0.25]
[1643329606267,1.52027651,90.107,90.012,0.25]
[1643329606565,1.52027651,90.121,90.013,1.98674801]
[1643329606767,1.52027651,90.121,90.014,0.25]
[1643329606974,6.0,90.111,90.014,0.25]
[1643329607363,2.95669142,90.11,90.014,0.25]
[1643329607564,6.0,90.1,89.99,6.0]
[1643329607863,1.52027651,90.097,89.96,13.39]
[1643329608066,6.0,90.087,89.96,13.39]
[1643329608264,0.25,90.086,89.96,13.39]
[1643329608462,7.52027651,90.083,89.973,160.10386313]
[1643329608661,5.30891833,90.086,89.973,160.10386313]
[1643329608662,6.0,90.078,89.973,160.10386313]
[1643329608863,29.89574103,90.072,89.973,160.10386313]
[1643329609065,6.0,90.071,89.973,160.10386313]
[1643329609263,0.25,90.071,89.973,160.10386313]
[1643329610167,0.25,90.071,89.974,0.25]
[1643329610367,6.0,90.062,89.974,0.25]
[1643329610766,0.25,90.061,89.974,0.25]
[1643329610969,6.0,90.062,89.974,34.31368504]
[1643329611172,0.25,90.061,89.975,1.98674801]
[1643329611370,6.0,90.069,89.976,0.25]
[1643329611678,23.4306,90.11,89.99,13.39]
[1643329611679,6.0,90.081,89.99,13.39]
[1643329611868,6.0,90.081,89.991,0.25]
[1643329612068,6.0,90.089,90.001,112.1]
[1643329612270,6.0,90.085,90.002,0.25]
[1643329612669,0.25,90.084,90.002,0.25]
[1643329613468,0.25,90.084,89.992,112.35]
[1643329614173,0.25,90.084,89.991,36.22147751]
[1643329614972,6.0,90.08,89.991,36.22147751]
[1643329615269,1.52027651,90.072,89.991,36.22147751]
[1643329615469,1.52027651,90.069,89.938,1.47410461]
[1643329615672,112.1,90.061,89.951,6.0]
[1643329615871,6.0,90.059,89.93,16.6752]
[1643329616072,6.0,90.051,89.93,16.6752]
[1643329616273,0.25,90.05,89.93,16.6752]
[1643329616473,0.25,90.05,89.931,35.56495696]
[1643329616474,30.32368925,90.046,89.931,35.56495696]
[1643329616678,6.0,90.043,89.931,35.56495696]
[1643329616876,6.0,90.036,89.931,35.56495696]
[1643329617075,6.0,90.035,89.932,0.25]
[1643329617277,6.25,90.035,89.932,0.25]
[1643329617477,6.0,90.034,89.932,0.25]
[1643329617876,6.0,90.025,89.932,0.25]
[1643329618078,0.25,90.033,89.932,0.25]
[1643329618277,0.25,90.033,89.933,19.09281383]
[1643329618479,0.25,90.033,89.94,16.6723]
[1643329618879,0.25,90.033,89.941,0.25]
[1643329619077,0.25,90.033,89.941,129.45593026]
[1643329619280,0.25,90.043,89.941,129.45593026]
[1643329619477,0.25,90.043,89.943,112.1]
[1643329619680,6.0,90.037,89.944,0.25]
[1643329619879,1.52027651,90.065,89.944,0.25]
[1643329619880,6.0,90.055,89.953,6.0]
[1643329620181,6.0,90.055,89.96,13.39]
[1643329620379,6.0,90.055,89.961,0.25]
[1643329620581,27.80984417,90.055,89.97,6.0]
[1643329620781,27.80984417,90.055,89.971,0.25]
[1643329621082,27.80984417,90.055,89.97,6.0]
[1643329621083,0.25,90.054,89.97,6.0]
[1643329621282,0.25,90.054,89.971,0.25]
[1643329621583,6.0,90.045,89.971,0.25]
[1643329622084,1.52027651,90.076,89.972,1.98688357]
[1643329622281,13.39,90.13,89.973,0.25]
[1643329622282,1.52027651,90.088,89.973,0.25]
[1643329622483,1.52027651,90.096,89.973,0.25]
[1643329622782,1.52027651,90.095,89.983,39.28102852]
[1643329622980,34.93679152,90.103,89.983,39.28102852]
[1643329622981,1.52027651,90.093,89.993,6.0]
[1643329623188,46.2641,90.13,89.993,6.0]
[1643329623189,1.52027651,90.11,89.993,6.0]
[1643329623381,6.0,90.083,90.0,6.0]
[1643329623584,6.0,90.1,90.01,13.39]
[1643329623782,6.0,90.1,90.011,0.25]
[1643329623984,6.0,90.103,90.021,112.1]
[1643329624285,0.25,90.109,90.033,36.30049683]
[1643329624682,1.52027651,90.122,90.034,0.25]
[1643329624882,1.52027651,90.124,90.034,0.25]
[1643329625284,1.52027651,90.124,90.04,16.6539]
[1643329625494,1.52027651,90.137,90.05,13.39]
[1643329625687,1.52027651,90.143,90.052,41.92484381]
[1643329625885,1.52027651,90.143,90.053,112.1]
[1643329626190,1.52027651,90.134,90.063,6.0]
[1643329626484,1.52027651,90.12,90.052,41.92484381]
[1643329626686,29.93573762,90.119,90.052,41.92484381]
[1643329626889,1.52027651,90.118,90.052,41.92484381]
[1643329627285,0.25,90.117,90.053,0.25]
[1643329628584,0.25,90.124,90.053,0.25]
[1643329629185,0.25,90.126,90.053,0.25]
[1643329629386,0.25,90.129,90.053,0.25]
[1643329629594,1.77027651,90.129,90.053,0.25]
[1643329629788,0.25,90.129,90.053,0.25]
[1643329630388,6.0,90.12,90.053,0.25]
[1643329630790,0.25,90.119,90.053,0.25]
[1643329630997,6.0,90.118,90.052,41.92484381]
[1643329631390,0.25,90.117,90.052,41.92484381]
[1643329631590,6.0,90.113,90.052,41.92484381]
[1643329631791,1.97557424,90.112,90.052,41.92484381]
[1643329632194,24.42149794,90.111,90.052,41.92484381]
[1643329632390,24.42149794,90.111,90.053,0.25]
[1643329632591,1.52027651,90.126,90.053,0.25]
[1643329632792,0.25,90.11,90.053,0.25]
[1643329633392,0.25,90.11,90.052,41.92484381]
[1643329633799,0.25,90.123,89.99,55.5332]
[1643329633996,6.0,90.114,90.028,6.0]
[1643329634194,1.52027651,90.112,90.004,6.0]
[1643329634394,6.0,90.114,89.995,6.0]
[1643329634395,19.39,90.11,89.995,6.0]
[1643329634594,6.0,90.1,89.99,6.0]
[1643329634795,1.74477627,90.099,89.99,47.86592088]
[1643329634993,6.0,90.089,89.99,47.86592088]
[1643329635196,6.0,90.089,89.991,0.25]
[1643329635395,0.25,90.088,89.991,0.25]
[1643329635593,6.25,90.088,89.991,0.25]
[1643329635994,6.25,90.088,89.99,47.86592088]
[1643329635995,2.95669142,90.087,89.99,47.86592088]
[1643329636295,24.68070334,90.086,89.99,47.86592088]
[1643329636495,32.78097938,90.075,89.99,47.86592088]
[1643329636899,6.0,90.065,89.99,47.86592088]
[1643329637299,0.25,90.064,89.99,47.86592088]
[1643329639598,6.0,90.06,89.99,47.86592088]
[1643329639802,8.42367998,90.059,89.99,47.86592088]
[1643329640100,6.0,90.049,89.99,47.86592088]
[1643329640298,0.25,90.048,89.99,47.86592088]
[1643329641900,6.25,90.048,89.99,47.86592088]
[1643329642601,11.60905543,90.061,89.99,47.86592088]
[1643329642602,6.0,90.049,89.99,47.86592088]
[1643329642802,6.0,90.049,89.991,0.25]
[1643329643101,6.0,90.075,89.991,2.23688357]
[1643329643703,38.88705062,90.074,89.991,2.23688357]
[1643329643901,38.88705062,90.074,89.99,61.25592088]
[1643329643902,0.25,90.073,89.99,47.86592088]
[1643329644101,0.25,90.073,89.991,0.25]
[1643329644501,0.25,90.073,89.99,47.86592088]
[1643329645602,0.25,90.073,89.991,0.25]
[1643329645805,0.25,90.073,89.99,47.86592088]
[1643329647407,6.0,90.064,89.99,47.86592088]
[1643329647807,0.25,90.063,89.991,0.25]
[1643329648017,0.25,90.063,89.99,47.86592088]
[1643329649410,0.25,90.063,89.991,0.25]
[1643329649608,38.88705062,90.074,89.991,0.25]
[1643329651009,0.25,90.073,89.99,47.86592088]
[1643329651210,0.25,90.073,89.991,0.25]
[1643329652013,0.25,90.073,90.0,6.0]
[1643329652815,112.35,90.073,89.96,14.86410461]
[1643329653014,6.0,90.063,89.96,1.47410461]
[1643329653214,6.0,90.063,89.95,16.6708]
[1643329653412,30.72462579,90.062,89.95,16.6708]
[1643329653611,6.0,90.052,89.96,6.0]
[1643329653914,2.31760874,90.051,89.961,38.72600067]
[1643329654210,8.31760874,90.051,89.961,38.97600067]
[1643329654811,8.31760874,90.051,89.961,38.72600067]
[1643329655313,8.31760874,90.051,89.962,0.25]
[1643329655512,6.0,90.046,89.961,38.72600067]
[1643329655711,6.0,90.041,89.961,38.72600067]
[1643329656113,0.25,90.04,89.961,38.72600067]
[1643329659718,0.25,90.05,89.961,38.72600067]
[1643329659918,0.25,90.04,89.962,0.25]
[1643329660121,0.25,90.05,89.962,0.25]
[1643329660521,2.06760874,90.051,89.962,0.25]
[1643329660720,6.0,90.041,89.962,0.25]
[1643329661920,0.25,90.04,89.962,0.25]
[1643329662320,0.25,90.04,89.963,1.98688343]
[1643329662748,0.25,90.04,89.964,0.25]
[1643329663749,0.25,90.04,89.962,0.25]
[1643329664248,0.25,90.04,89.963,1.47410461]
[1643329664651,0.25,90.04,89.964,0.25]
[1643329664850,0.25,90.05,89.964,0.25]
[1643329665250,6.0,90.041,89.964,1.72410461]
[1643329665655,0.25,90.04,89.968,1.47410461]
[1643329665855,0.25,90.04,89.969,1.72410461]
[1643329666053,0.25,90.04,89.969,1.47410461]
[1643329666252,0.25,90.04,89.97,0.25]
[1643329667954,0.25,90.04,89.965,1.47410461]
[1643329668256,0.25,90.04,89.961,38.72600067]
[1643329669056,6.0,90.035,89.961,38.72600067]
[1643329669354,32.39452698,90.034,89.961,38.72600067]
[1643329669556,6.0,90.024,89.961,38.72600067]
[1643329669757,0.25,90.023,89.961,38.72600067]
[1643329673560,6.0,90.024,89.961,38.72600067]
[1643329673764,176.39413555,90.193,89.961,38.72600067]
[1643329673765,1.52027651,90.05,89.962,114.33688343]
[1643329673966,1.52027651,90.079,89.977,1.47410461]
[1643329674162,1.52027651,90.09,89.987,1.47410461]
[1643329674361,1.52027651,90.089,89.988,0.25]
[1643329674562,1.52027651,90.087,89.988,0.25]
[1643329674964,63.04854645,90.088,89.988,0.25]
[1643329675162,6.0,90.077,89.988,0.25]
[1643329675362,24.46823833,90.087,89.988,0.25]
[1643329676465,0.25,90.086,89.988,0.25]
[1643329676663,6.0,90.077,89.988,0.25]
[1643329676867,0.25,90.076,89.988,0.25]
[1643329677063,0.25,90.076,89.987,34.90481276]
[1643329678064,6.25,90.077,89.997,6.0]
[1643329678265,6.25,90.077,89.998,0.25]
[1643329678469,6.0,90.077,89.998,0.25]
[1643329678666,1.52027651,90.099,89.998,114.33688343]
[1643329678867,1.52027651,90.114,90.01,13.39]
[1643329679064,13.39,90.16,90.01,13.39]
[1643329679065,1.52027651,90.117,90.02,6.0]
[1643329679265,1.52027651,90.118,90.021,112.35]
[1643329679465,30.53442029,90.116,90.022,36.96427557]
[1643329679664,30.53442029,90.116,90.031,6.0]
[1643329679868,0.25,90.115,90.032,6.25]
[1643329680367,24.47485527,90.114,90.032,6.25]
[1643329680666,0.25,90.113,90.032,6.0]
[1643329680866,0.25,90.113,90.033,0.25]
[1643329681071,24.47485527,90.112,90.033,0.25]
[1643329681269,0.25,90.111,90.033,0.25]
[1643329681868,24.47485527,90.11,90.033,0.25]
[1643329682371,0.25,90.109,90.033,0.25]
[1643329682770,0.25,90.109,90.032,6.0]
[1643329682971,24.47485527,90.108,90.032,6.0]
[1643329683372,24.47485527,90.108,89.996,1.47410461]
[1643329683373,0.25,90.107,89.993,1.47410461]
[1643329683576,1.52027651,90.087,89.965,1.47410461]
[1643329683769,1.52027651,90.074,89.952,1.47410461]
[1643329683976,1.52027651,90.073,89.95,1.47410461]
[1643329684170,16.01,90.06,89.95,1.47410461]
[1643329684372,112.35,90.059,89.953,46.70022899]
[1643329684570,6.0,90.049,89.953,46.70022899]
[1643329684772,0.25,90.048,89.953,46.70022899]
[1643329684970,112.1,90.047,89.942,1.47410461]
[1643329685171,6.0,90.04,89.932,1.47410461]
[1643329685371,16.01,90.03,89.932,1.47410461]
[1643329685672,6.0,90.02,89.92,1.47410461]
[1643329685872,0.25,90.019,89.919,1.47410461]
[1643329686076,13.52459217,90.019,89.921,48.15344127]
[1643329686673,6.0,90.01,89.922,0.25]
[1643329686872,112.35,90.009,89.922,0.25]
[1643329687072,118.35,90.009,89.922,0.25]
[1643329688073,118.35,90.009,89.921,48.15344127]
[1643329688274,6.25,90.009,89.921,48.15344127]
[1643329688874,6.0,90.006,89.921,48.15344127]
[1643329689076,6.0,89.999,89.921,48.15344127]
[1643329689276,0.25,89.998,89.922,0.25]
[1643329689473,6.0,89.995,89.922,0.25]
[1643329689874,0.25,89.994,89.922,0.25]
[1643329690077,6.0,89.995,89.922,0.25]
[1643329690277,0.25,89.994,89.922,0.25]
[1643329690678,0.25,89.994,89.923,1.47410461]
[1643329690879,6.0,90.007,89.924,0.25]
[1643329691077,8.95669142,90.025,89.924,0.25]
[1643329691280,44.32717228,90.025,89.924,0.25]
[1643329691480,6.0,90.016,89.924,0.25]
[1643329691678,6.0,90.015,89.924,0.25]
[1643329692078,6.0,90.015,89.922,0.25]
[1643329692279,0.25,90.014,89.922,0.25]
[1643329693079,6.0,90.013,89.922,0.25]
[1643329693279,0.25,90.012,89.922,0.25]
[1643329693681,2.4385316,90.011,89.922,0.25]
[1643329693884,0.25,90.01,89.922,0.25]
[1643329694083,6.0,90.001,89.922,0.25]
[1643329694281,0.25,90.0,89.922,0.25]
[1643329699508,112.35,90.0,89.922,0.25]
[1643329699908,35.37048086,89.989,89.922,0.25]
[1643329700313,0.25,89.988,89.922,0.25]
[1643329701113,112.35,89.988,89.922,0.25]
[1643329706012,112.35,89.988,89.921,48.15344127]
[1643329706414,112.35,89.988,89.896,1.47410461]
[1643329706614,112.1,89.977,89.893,1.47410461]
[1643329706818,0.25,89.976,89.887,1.47410461]
[1643329707214,0.25,89.976,89.889,1.47410461]
[1643329707415,0.25,89.976,89.892,47.39512356]
[1643329707817,0.25,89.976,89.893,0.25]
[1643329707818,114.5385316,89.966,89.893,0.25]
[1643329708216,0.25,89.965,89.893,0.25]
[1643329710920,6.0,89.956,89.884,1.47410461]
[1643329711122,6.0,89.956,89.875,1.47410461]
[1643329711321,6.0,89.956,89.866,1.47410461]
[1643329711322,3.20669142,89.955,89.866,1.47410461]
[1643329711520,6.0,89.945,89.857,1.47410461]
[1643329711720,141.08619884,89.939,89.858,37.28645433]
[1643329711923,147.08619884,89.939,89.858,37.28645433]
[1643329712123,6.0,89.929,89.858,37.28645433]
[1643329712322,0.25,89.928,89.858,37.28645433]
[1643329712621,11.8775955,89.928,89.858,37.28645433]
[1643329713022,6.0,89.918,89.858,37.28645433]
[1643329713221,8.82281362,89.917,89.859,1.47410461]
[1643329713423,9.07281362,89.917,89.86,1.47410461]
[1643329713824,2.95669142,89.916,89.855,1.47410461]
[1643329714022,6.0,89.906,89.847,1.47410461]
[1643329714222,6.0,89.906,89.843,1.47410461]
[1643329714426,0.25,89.905,89.833,1.47410461]
[1643329714623,6.0,89.9,89.834,44.63047926]
[1643329714924,27.19338777,89.899,89.834,44.63047926]
[1643329715125,6.0,89.889,89.834,44.63047926]
[1643329715323,0.25,89.888,89.834,44.63047926]
[1643329716325,0.25,89.888,89.835,0.25]
[1643329717427,37.67876203,89.905,89.835,0.25]
[1643329718025,6.0,89.895,89.835,0.25]
[1643329718425,6.25,89.894,89.835,0.25]
[1643329718625,0.25,89.894,89.835,0.25]
[1643329719124,6.25,89.894,89.835,0.25]
[1643329719725,6.25,89.894,89.834,44.63047926]
[1643329719726,0.25,89.894,89.834,44.63047926]
[1643329720328,0.25,89.894,89.835,0.25]
[1643329720827,0.25,89.894,89.834,44.63047926]
[1643329721527,6.0,89.895,89.834,44.63047926]
[1643329721934,30.0497,89.93,89.834,44.63047926]
[1643329722430,13.35,89.92,89.825,1.47410461]
[1643329722630,6.0,89.906,89.811,1.47410461]
[1643329722830,6.0,89.906,89.812,0.25]
[1643329723033,6.0,89.897,89.809,6.0]
[1643329723230,6.0,89.897,89.811,0.25]
[1643329723431,30.88577195,89.896,89.811,0.25]
[1643329724031,30.88577195,89.896,89.815,1.47410461]
[1643329724230,30.88577195,89.896,89.811,0.25]
[1643329724231,30.88577195,89.896,89.813,1.47410461]
[1643329724432,30.88577195,89.896,89.811,1.72410461]
[1643329724834,30.88577195,89.896,89.821,6.0]
[1643329725231,30.88577195,89.896,89.822,0.25]
[1643329725433,30.88577195,89.896,89.81,49.23894716]
[1643329725635,30.88577195,89.896,89.811,0.25]
[1643329725835,30.88577195,89.896,89.81,49.23894716]
[1643329727034,6.0,89.886,89.81,49.23894716]
[1643329727235,0.25,89.885,89.811,0.25]
[1643329727438,112.35,89.885,89.811,0.25]
[1643329727638,6.0,89.875,89.811,0.25]
[1643329727835,7.42324051,89.874,89.811,0.25]
[1643329729237,7.42324051,89.874,89.799,0.1]
[1643329729536,7.42324051,89.874,89.7,167.5]
[1643329729537,112.1,89.873,89.792,0.1]
[1643329729737,0.25,89.872,89.785,1.47410461]
[1643329730065,0.25,89.872,89.795,6.0]
[1643329730237,112.1,89.862,89.795,39.2568029]
[1643329730437,112.1,89.862,89.76,3.02436095]
[1643329730438,13.35,89.86,89.796,0.1]
[1643329730638,112.1,89.849,89.773,1.47410461]
[1643329730837,0.25,89.848,89.766,1.47410461]
[1643329731040,6.0,89.839,89.776,6.0]
[1643329731239,112.1,89.838,89.776,6.0]
[1643329731436,112.1,89.836,89.777,40.52997721]
[1643329731636,30.01426239,89.837,89.778,0.1]
[1643329731835,0.25,89.835,89.778,0.35]
[1643329732038,6.0,89.827,89.778,0.35]
[1643329732436,0.25,89.826,89.778,0.1]
[1643329733037,16.7136,89.86,89.778,0.1]
[1643329733240,13.35,89.88,89.778,0.1]
[1643329733438,23.4083,89.883,89.778,0.1]
[1643329733639,112.1,89.888,89.783,1.47410461]
[1643329733837,112.1,89.888,89.788,1.47410461]
[1643329734040,112.1,89.888,89.784,0.25]
[1643329734041,33.8015324,89.887,89.79,1.47410461]